Cogmind - Beta 10.2 @@@ ROGUE MODE // 2021.06.29 @ 02:59:16 Player: Chemicalhorse Result: Self-destructed Performance ------------- Evolutions (1) 500 Regions Visited (2) 400 Robots Destroyed (40) 200 Value Destroyed (1012) 1012 Prototype IDs (2) 40 Alien Tech Used (0) 0 Bonus (0) 0 TOTAL SCORE: 2152 Bonus ------- None Cogmind --------- Core Integrity 143/400 Matter 300/300 Energy 210/250 System Corruption 0% Temperature Cool (0) Movement Rolling (120) Ox3 Location -9/Materials Parts ------- > --- POWER (1) -------- Ion Engine > --- PROPULSION (2) --- Armored Wheel > --- UTILITY (3) ------ High-capacity Storage Unit Targeting Computer > --- WEAPON (3) ------- Katana Katana > --- INVENTORY (12) --- Ion Engine Cryofiber Web Visual Processing Unit Reactive Plating Reactive Plating Grenade Launcher Mining Laser Peak State ------------ > --- POWER ------------ Ion Engine > --- PROPULSION ------- Armored Wheel Armored Wheel > --- UTILITY ---------- High-capacity Storage Unit Targeting Computer Hardened Light Armor Plating > --- WEAPON ----------- Beam Rifle Light Assault Rifle Light Assault Rifle > --- INVENTORY -------- Ion Engine Ion Engine Armored Wheel Cryofiber Web Visual Processing Unit Reactive Plating Reactive Plating Grenade Launcher Mining Laser Katana Katana [Rating: 15] Favorites ----------- Power Ion Engine Engine Ion Engine Propulsion Armored Wheel Leg Aluminum Leg Wheel Armored Wheel Utility High-capacity Storage Unit Device Shield Generator Storage High-capacity Storage Unit Processor Targeting Computer Protection Hardened Light Armor Plating Weapon Light Assault Rifle Energy Gun Small Laser Energy Cannon Beam Cannon Ballistic Gun Light Assault Rifle Special Weapon Mining Laser Impact Weapon Mace Slashing Weapon Katana Build | -11 -10 -9 ------- Run | Scr Mat Mat Slots Evolved 2 | . . 2 Power . | . . . Propulsion . | . . . Utility 1 | . . 1 Weapon 1 | . . 1 Parts Attached 42 | 6 17 19 Power 5 | 1 2 2 Engine 5 | 1 2 2 Core . | . . . Reactor . | . . . Propulsion 11 | 2 6 3 Treads . | . . . Leg 2 | . 2 . Wheel 9 | 2 4 3 Hover . | . . . Flight . | . . . Utility 7 | 1 3 3 Device 1 | . . 1 Storage 3 | 1 1 1 Processor 1 | . 1 . Hackware . | . . . Protection 2 | . 1 1 Artifact . | . . . Weapon 19 | 2 6 11 Energy Gun 8 | 1 2 5 Energy Cannon 2 | . 2 . Ballistic Gun 5 | 1 1 3 Ballistic Cannon . | . . . Launcher . | . . . Special Weapon 1 | . . 1 Impact Weapon 1 | . 1 . Slashing Weapon 2 | . . 2 Piercing Weapon . | . . . Special Melee Weapon . | . . . Unidentified Prototypes . | . . . Parts Lost 17 | . 3 14 Power 1 | . . 1 Propulsion 4 | . 2 2 Utility 2 | . . 2 Weapon 10 | . 1 9 Highest Loss Streak 8 | . 1 8 Average Slot Usage (%) 95 | . 95 95 Engine 12 | . 13 10 Leg 2 | . 3 . Wheel 21 | . 22 20 Device 2 | . . 5 Storage 12 | . 14 11 Processor 9 | . 9 11 Protection 4 | . 3 5 Energy Gun 11 | . 9 13 Energy Cannon 6 | . 8 2 Ballistic Gun 10 | . 8 13 Naked Turns . | . . . Heaviest Build 74 | 10 41 74 Greatest Support 24 | 20 24 24 Greatest Overweight (x) 12 | 1 12 12 Average Overweight (x) 1 | . 1 1 Largest Inventory Capacity 20 | 6 12 20 Average Capacity 11 | 5 11 12 Most Carried 12 | 4 12 12 Average Carried 10 | 1 9 11 Final Capacity 12 | 6 12 12 Final Carried 12 | 4 12 7 Class Distribution -------------------- 59% | Mutant 23% | Gunner 15% | Scavenger-Gunner Dominant Class ---------------- Mutant | -10/Materials Gunner | -9/Materials Resources | -11 -10 -9 ----------- Run | Scr Mat Mat Matter Collected 745 | 260 239 246 Remotely . | . . . Salvage Created 1457 | . 597 860 Parts 86 | . 27 59 Haulers Intercepted 3 | . 2 1 Recyclers Shooed 1 | . 1 . Parts Field Recycled . | . . . Retrieved Matter . | . . . Parts Self-Destructed . | . . . Prevented . | . . . Kills | -11 -10 -9 ------- Run | Scr Mat Mat Combat Hostiles Destroyed 29 | . 11 18 Melee 3 | . 1 2 Guns 18 | . 3 15 Cannons 7 | . 6 1 AOE 1 | . 1 . Classes Destroyed 8 | . 5 3 Worker 1 | . . 1 Hauler 3 | . 2 1 Recycler 1 | . . 1 Operator 3 | . 1 2 Watcher 3 | . 2 1 Swarmer 7 | . 3 4 Grunt 19 | . 8 11 Sentry 3 | . . 3 Best Kill Streak 5 | . 4 5 Combat Bots Only 5 | . 3 5 Max Kills in Single Turn 1 | . 1 1 Gunslinging . | . . . Exploded 1 | . 1 . Melee 1 | . 1 1 Uniques/NPCs Destroyed . | . . . Combat | -11 -10 -9 -------- Run | Scr Mat Mat Damage Taken 1970 | . 655 1315 Core 386 | . 129 257 Absorbed by Shields 43 | . . 43 Core Remaining (%) 74 | 100 48 . Volleys Fired 110 | . 49 61 Largest 3 | . 2 3 Hottest 140 | . 100 140 Shots Fired 264 | . 95 169 Gun 218 | . 58 160 Cannon 45 | . 37 8 Launcher . | . . . Special 1 | . . 1 Kinetic 114 | . 28 86 Thermal 128 | . 45 83 Explosive . | . . . Electromagnetic 22 | . 22 . Robot Hit Streak 21 | . 12 21 Robot Miss Streak 5 | . 2 5 Penetration Max . | . . . Secondary Targets 2 | . . 2 Max Gunslinging Chain 1 | . . 1 Shots Hit Robots 206 | . 78 128 Core Hits 74 | . 27 47 Critical Hits . | . . . Critical Kills . | . . . Critical Parts Destroyed . | . . . Melee Attacks 31 | . 13 18 Impact 13 | . 13 . Slashing 18 | . . 18 Piercing . | . . . Sneak Attacks 1 | . . 1 Combat Hostiles . | . . . Follow-up Attacks 1 | . . 1 Damage Inflicted 2732 | . 1154 1578 Guns 1448 | . 462 986 Cannons 506 | . 420 86 Explosions 109 | . 109 . Melee 645 | . 163 482 Ramming . | . . . Kinetic 620 | . 141 479 Thermal 1224 | . 607 617 Explosive . | . . . Electromagnetic 243 | . 243 . Impact 163 | . 163 . Slashing 482 | . . 482 Piercing . | . . . Highest Corruption 3 | . 3 . Average Corruption 2 | . 2 . Corruption Purged . | . . . Effects 23 | . 23 . Message Errors 4 | . 4 . Matter Fused 7 | . 7 . Energy Discharges 7 | . 7 . Data Loss (minor) 2 | . 2 . Targeting Errors 2 | . 2 . Weapon Failures 1 | . 1 . Overload Shots . | . . . Overflow Damage 111 | . 23 88 Projectiles . | . . . Explosions 23 | . 23 . Melee 88 | . . 88 Knockbacks 2 | . 2 . Impact 2 | . 2 . Kinetic . | . . . Secondary . | . . . Self-Inflicted Damage 67 | . 67 . Shots 2 | . 2 . Rammed . | . . . Targets Rammed . | . . . Kicked . | . . . Crushed . | . . . Highest Temperature 317 | . 298 317 Average Temperature 99 | . 101 98 Received Heat Transfer 810 | . 288 522 Effects 2 | . 2 . Interference 2 | . 2 . Siege Activations . | . . . Robots Corrupted . | . . . Combat Hostiles . | . . . Parts Fried 2 | . 2 . Impact Corruptions . | . . . Robots Melted . | . . . Combat Hostiles . | . . . Parts Melted 4 | . 3 1 Heat Transferred 2647 | . 1263 1384 Parts Sabotaged . | . . . Parts Stolen . | . . . Parts Stripped . | . . . Power Chain Reactions 3 | . 3 . Missiles Intercepted . | . . . Alert | -11 -10 -9 ------- Run | Scr Mat Mat Peak Influence 280 | . 202 280 Initial 69 | . . 69 Average 89 | . 56 134 Maximum Alert Level 1 | . 1 1 Low Security (%) 91 | 100 97 82 Level 1 8 | . 2 17 Level 2 . | . . . Level 3 . | . . . Level 4 . | . . . Level 5 . | . . . High Security . | . . . Max Security . | . . . Squads Dispatched 6 | . 4 2 Investigation 2 | . 1 1 Extermination . | . . . Reinforcement 4 | . 3 1 Assault . | . . . Garrison . | . . . Intercept . | . . . Construction Impeded . | . . . Haulers Reinforced . | . . . Stealth | -11 -10 -9 --------- Run | Scr Mat Mat Distress Signals 6 | . 2 4 Communications Jammed . | . . . Distress Signals . | . . . Times Spotted 53 | . 21 32 Peak Tracking Total 7 | . 4 7 Tactical Retreats 6 | . 3 3 Traps | -11 -10 -9 ------- Run | Scr Mat Mat Traps Triggered 7 | . 6 1 Indirectly . | . . . Trap Hack Attempts . | . . . Triggered . | . . . Disarmed . | . . . Reprogrammed . | . . . Reused . | . . . Traps Extracted . | . . . Installed . | . . . Triggered . | . . . Machines | -11 -10 -9 ---------- Run | Scr Mat Mat Machines Disabled . | . . . Max in Single Turn . | . . . Machines Sabotaged . | . . . Garrisons Compromised . | . . . Overloaded Fab Kills . | . . . Fab Network Shutdowns . | . . . Hacking | -11 -10 -9 --------- Run | Scr Mat Mat Machines Accessed 11 | . 6 5 Terminals 6 | . 4 2 Fabricators . | . . . Repair Stations 2 | . 1 1 Recycling Units 2 | . 1 1 Scanalyzers 1 | . . 1 Garrison Access . | . . . Total Hacks 48 | . 25 23 Successful 36 | . 17 19 Failed 12 | . 8 4 Catastrophic 1 | . 1 . Database Lockouts . | . . . Manual . | . . . Terminals 23 | . 16 7 Fabricators . | . . . Repair Stations 16 | . 7 9 Recycling Units 3 | . 2 1 Scanalyzers 6 | . . 6 Garrison Access . | . . . Terminal Hacks 13 | . 9 4 Record 3 | . 3 . Prototype ID Bank 1 | . . 1 Emergency Access Points 2 | . 2 . Repair Station Index 1 | . . 1 Alert Level 1 | . 1 . Unreport Threat 1 | . 1 . Locate Traps 2 | . 1 1 Maintenance Status 1 | . . 1 Patrol Status 1 | . 1 . Fabricator Hacks . | . . . Repair Station Hacks 14 | . 6 8 Scan Component 7 | . 3 4 Repair 7 | . 3 4 Recycling Unit Hacks 3 | . 2 1 Process 2 | . 1 1 Report Inventory 1 | . 1 . Scanalyzer 6 | . . 6 Insert Component 3 | . . 3 Analyze 3 | . . 3 Garrison Access Hacks . | . . . Unauthorized Hacks . | . . . Terminals . | . . . Fabricators . | . . . Repair Stations . | . . . Recycling Units . | . . . Scanalyzers . | . . . Garrison Access . | . . . Data Cores Recovered . | . . . Used . | . . . Hacking Detections 8 | . 4 4 Full Trace Events 2 | . . 2 Feedback Events . | . . . Feedback Blocked . | . . . Robot Schematics Acquired . | . . . Robots Built . | . . . Matter . | . . . Time . | . . . Total Robot Build Rating . | . . . Part Schematics Acquired 3 | . . 3 Parts Built . | . . . Matter . | . . . Time . | . . . Total Part Build Rating . | . . . Parts Repaired 7 | . 3 4 Time 206 | . 90 116 Parts Recycled . | . . . Recycled Matter 59 | . 38 21 Retrieved Matter . | . . . Retrieved Components . | . . . Parts Scanalyzed 3 | . . 3 Part Schematics Acquired 3 | . . 3 Parts Damaged . | . . . Bothacking | -11 -10 -9 ------------ Run | Scr Mat Mat Used RIF Installer . | . . . Robots Hacked . | . . . Non-combat . | . . . Combat . | . . . Robot Hacks Applied . | . . . Relay Couplers Released . | . . . Robots Rewired . | . . . Allies Hacked . | . . . Hacks Repelled . | . . . Allies | -11 -10 -9 -------- Run | Scr Mat Mat Total Allies . | . . . Largest Group . | . . . Highest-Rated Group . | . . . Highest-Rated Ally . | . . . Total Orders . | . . . Ally Attacks . | . . . Total Damage . | . . . Kills . | . . . Allies Corrupted . | . . . Allies Melted . | . . . Intel | -11 -10 -9 ------- Run | Scr Mat Mat Robot Analysis Total . | . . . Derelict Logs Recovered . | . . . Drone Launches . | . . . Drone Recoveries . | . . . Exploration | -11 -10 -9 ------------- Run | Scr Mat Mat Turns Passed 2502 | 57 1346 1099 Spaces Moved 1488 | 56 882 550 Core 7 | 4 2 1 Treads . | . . . Legs 109 | . 109 . Wheels 1372 | 52 771 549 Hover . | . . . Flight . | . . . Fastest Speed 50 | 50 80 100 Average Speed 103 | 78 106 102 Slowest Speed 650 | 100 650 650 Overloaded Moves . | . . . Propulsion Burnouts . | . . . Robots Hopped . | . . . Cave-ins Triggered . | . . . Exploration Rate (%) 46 | 3 96 41 Regions Visited 2 Branch Regions . Pre-discovered Areas . | . . . Known Exits Taken . | . . . Unknown Exits Taken 2 | 1 1 . Scrap Searched . | . . . Spaces Dug . | . . . Terrain Destroyed 11 | . 11 . Melee . | . . . Projectile . | . . . AOE 11 | . 11 . Terrain Rammed . | . . . Walls Destroyed . | . . . Machines Disabled . | . . . Actions | -11 -10 -9 --------- Run | Scr Mat Mat Total 2193 | 65 1182 946 Wait 468 | . 191 277 Move 1486 | 55 881 550 Hop . | . . . Pick Up 38 | 4 19 15 Fast Attach 15 | 6 5 4 Attach 20 | . 7 13 Detach 5 | . 5 . Swap 7 | . 5 2 Drop 14 | . 7 7 Fire 110 | . 49 61 Melee 30 | . 13 17 Ram . | . . . Kick . | . . . Crush . | . . . Escape Stasis . | . . . Rewire . | . . . Trap . | . . . Miscellaneous . | . . . Route ------- -11/Scrapyard -10/Materials (discovered 4 exits: *Mat x3 / [*Min]) -9/Materials (discovered 2 exits: [*Mat] / [*Min]) History --------- Turn | Location | Event 10 | -11/Scrapyard | Discovered new exit (range 14) 58 | -11/Scrapyard | Entered Materials 311 | -10/Materials | Build established: Mutant 353 | -10/Materials | Discovered new exit (range 9) 419 | -10/Materials | Discovered new exit (range 15) 654 | -10/Materials | Repaired Arm. Wheel 680 | -10/Materials | Repaired Lgt. Assault Rifle 778 | -10/Materials | Repaired Arm. Wheel 877 | -10/Materials | Discovered new exit (range 3) 1332 | -10/Materials | Core integrity fell below 50% 1360 | -10/Materials | Discovered new exit (range 8) 1404 | -10/Materials | Entered another Materials area 1404 | -9/Materials | Evolved 2 slots: Utility x1, Weapon x1 1744 | -9/Materials | Build established: Gunner 1767 | -9/Materials | Discovered new exit (range 3) 2068 | -9/Materials | Lost 3 parts (3w) 2163 | -9/Materials | Repaired Arm. Wheel 2163 | -9/Materials | Repaired Arm. Wheel 2163 | -9/Materials | Repaired Ion Engine 2189 | -9/Materials | Repaired Lgt. Assault Rifle 2286 | -9/Materials | Discovered new exit (range 9) 2477 | -9/Materials | Core integrity fell below 50% 2503 | -9/Materials | Self-destructed Last Messages --------------- Arm. Wheel destroyed. Destroyed Beam Rifle. Ion Engine destroyed. Y-45 Defender destroyed. K-01 Serf collects debris. Sneak attack on K-01 Serf. Destroyed Lgt. Ion Engine. Destroyed Wheel. K-01 Serf destroyed. R-06 Scavenger collects Sml. Laser. K-01 Serf collects debris. Acquired 10 matter. K-01 Serf collects debris. Acquired 1 matter. Katana follow-up attack on G-47 Trooper. K-01 Serf collects debris. Acquired 9 matter. K-01 Serf collects debris. G-47 Trooper destroyed. K-01 Serf collects debris. Map ----- +----------------------------------------------------+ | | | | | | | | | | | ?????????????????????????????????????????????????? | | ?????????????????????????????????????????????????? | | ?????????????????????????????????????????????????? | | ?????????????????????????????????????????????????? | | #????????????????????????????????????????????????? | | ???????????????????????????????????????????????? | | ???????????????????????????????????????????????? | | "" #??????????????????????????+#??????#+###??????? | | "" #????????????????????????## ####### ??????? | | "" #????????????????????????# ?????? | | "" #????????????????????????+ ??????? | | "" #????????????????????????# ????????? | | #????????????????????????# ??????????? | | ####????????????????????????# ????????????? | | #??????????????????########## ??????????????? | | #??????????????????# ????????????????? | | ########???????????# #?????????????????? | | # #???????????# #?????????????????? | | # """ #???????????# """ #?????????????????? | | #*"Y" #???????????# """ k =#?????? # #???? | | +% #???????????# """@* % #### + #???? | | # ###########?# = !=%! + #???????? | | # ## #?# k #### #???????? | | ######### #?# #?????? #???????? | | ######### ### #?????????????????? | | # % # ! """## ####?????????????????? | | # T # """## #????????????????????? | | /% # """## #????????????????????? | | ######### """## #####+#####????????????????? | | ##??????# ## # #????????????????? | | ##??????# ## # [[ #????????????????? | | ##########/####### w # [[ #????????????????? | | """ % # [ #????????????????? | | "R" $ + !!#????????????????? | | " " " # #????????????????? | | """ ##### #????????????????? | | % """ #???# =%!#????????????????? | | """ !! #???######### #????????????????? | | "" !! #????????????##????????????????? | | """ #??????????????????????????????? | | "" #??????????????????????????????? | | "" #??????????????????????????????? | | | " #??????????????????????????????? | | #??????????????????????????????? | | #??????????????????????????????? | +----------------------------------------------------+ Best States ------------- Heat Dissipation 28 Energy Generation 10 Energy Capacity 250 Matter Stores 300 Matter Capacity 300 Sight Range 16 Terrain Scan Density 10 Armor Coverage 150 Core Shielding 20 Evasion (%) 44 Targeting Accuracy 5 Item Schematics ----------------- Arm. Wheel | -9/Materials | Scanalyzed Ion Engine | -9/Materials | Scanalyzed Grenade Launcher | -9/Materials | Scanalyzed Robot Schematics ------------------ None Fabricated ------------ Nothing Alien Tech Used ----------------- None Achievements -------------- None Challenges ------------ None Game ------ Seed SurveybotSalvageWheel Manual? 0 Play Time 00:30:22 Cumulative 16.2 hours Start 2021.06.29 @ 02:28:07 End 2021.06.29 @ 02:59:16 Sessions 1 Manual Loads 0 Difficulty Rogue Special Mode None Game No. 34 Rogue 33 Adventurer 1 Explorer 0 Win Type - Total 0 Types 0/0/0/0/0/0/0/0/0 Lore% 20 Gallery% 19 Achievement% 14 Wizard Run 0 Options --------- ASCII 0 Keyboard 1 Movement Numpad Keybinds 0 Fullscreen 1 Font 18/SmallcapsGlow Map View 76x50 Tactical HUD 0 Map Filters NONE Filters NONE Steam 1 RUN: 8188bb57-a5cc-466b-8a64-6117810ef8dc